Cogmind - Beta 11.1 @@@ ROGUE MODE // 2022.05.04 @ 22:35:30 Player: kway_side Result: Destroyed by as-00862 with Assembled Rifle Performance ------------- Evolutions (0) 0 Regions Visited (2) 400 Robots Destroyed (18) 90 Value Destroyed (417) 417 Prototype IDs (0) 0 Alien Tech Used (0) 0 Bonus (0) 0 TOTAL SCORE: 907 Bonus ------- None Cogmind --------- Core Integrity 0/250 Matter 104/300 Energy 96/100 System Corruption 7% Temperature Cool (0) Movement Rolling (100) Location -10/Mines Parts ------- > --- POWER (1) -------- (None) > --- PROPULSION (2) --- Compact Wheel > --- UTILITY (2) ------ Small Storage Unit Utility Shielding > --- WEAPON (2) ------- Assault Rifle Mining Claw > --- INVENTORY (8) ---- Signal Interpreter Medium Laser Medium Laser Light Cannon Peak State ------------ > --- POWER ------------ Ion Engine > --- PROPULSION ------- Light Treads Light Treads > --- UTILITY ---------- Small Storage Unit Terrain Scanner > --- WEAPON ----------- Particle Gun Assault Rifle > --- INVENTORY -------- Ion Engine Aluminum Leg Aluminum Leg Compact Wheel Improved Heat Sink Medium Laser Medium Laser Grenade Launcher [Rating: 9] Favorites ----------- Power Ion Engine Engine Ion Engine Propulsion Light Treads Treads Light Treads Leg Aluminum Leg Wheel Compact Wheel Utility Small Storage Unit Device Terrain Scanner Storage Small Storage Unit Protection Utility Shielding Weapon Assault Rifle Energy Gun Medium Laser Ballistic Gun Assault Rifle Ballistic Cannon Light Cannon Launcher Grenade Launcher Slashing Weapon Mining Claw Build | -11 -10 -10 ------- Run | Scr Mat Min Slots Evolved . | . . . Power . | . . . Propulsion . | . . . Utility . | . . . Weapon . | . . . Parts Attached 17 | . 10 7 Power 2 | . 1 1 Engine 2 | . 1 1 Core . | . . . Reactor . | . . . Propulsion 7 | . 5 2 Treads 5 | . 5 . Leg . | . . . Wheel 2 | . . 2 Hover . | . . . Flight . | . . . Utility 2 | . 1 1 Device 1 | . 1 . Storage . | . . . Processor . | . . . Hackware . | . . . Protection 1 | . . 1 Artifact . | . . . Weapon 6 | . 3 3 Energy Gun 1 | . 1 . Energy Cannon . | . . . Ballistic Gun 1 | . 1 . Ballistic Cannon 2 | . 1 1 Launcher 1 | . . 1 Special Weapon . | . . . Impact Weapon . | . . . Slashing Weapon 1 | . . 1 Piercing Weapon . | . . . Special Melee Weapon . | . . . Unidentified Prototypes . | . . . Parts Lost 6 | . . 6 Power 2 | . . 2 Propulsion 2 | . . 2 Utility 1 | . . 1 Weapon 1 | . . 1 Highest Loss Streak 2 | . . 2 To Critical Strikes . | . . . Average Slot Usage (%) 96 | . 98 81 Engine 12 | . 14 4 Treads 25 | . 26 21 Device 12 | . 13 3 Storage 14 | . 14 14 Energy Gun 4 | . 4 . Ballistic Gun 13 | . 13 14 Ballistic Cannon 8 | . 9 7 Naked Turns . | . . . Heaviest Build 16 | 14 16 16 Greatest Support 40 | 20 40 40 Greatest Overweight (x) 3 | . . 3 Average Overweight (x) . | . . . Largest Inventory Capacity 8 | 8 8 8 Average Capacity 8 | 8 8 8 Most Carried 8 | 6 8 7 Average Carried 7 | 6 7 6 Final Capacity 8 | 8 8 8 Final Carried 7 | 6 7 4 Class Distribution -------------------- 100% | Mutant Dominant Class ---------------- Mutant | -10/Materials Mutant | -10/Mines Resources | -11 -10 -10 ----------- Run | Scr Mat Min Matter Collected 559 | 200 328 31 Remotely . | . . . Salvage Created 601 | . 540 61 Parts 35 | . 33 2 Haulers Intercepted 2 | . 2 . Recyclers Shooed . | . . . Parts Field Recycled . | . . . Retrieved Matter . | . . . Parts Self-Destructed . | . . . Prevented . | . . . Kills | -11 -10 -10 ------- Run | Scr Mat Min Combat Hostiles Destroyed 17 | . 11 6 Melee 2 | . . 2 Guns 10 | . 8 2 Cannons 3 | . 3 . AOE 2 | . . 2 Classes Destroyed 7 | . 5 2 Worker 1 | . . 1 Hauler 2 | . 2 . Operator 2 | . 2 . Watcher 2 | . 2 . Swarmer 3 | . 3 . Grunt 8 | . 8 . Assembled 6 | . . 6 Best Kill Streak 4 | . 4 4 Combat Bots Only 3 | . 3 2 Max Kills in Single Turn 1 | . 1 1 Gunslinging . | . . . Exploded 1 | . . 1 Melee 1 | . . 1 Uniques/NPCs Destroyed . | . . . Combat | -11 -10 -10 -------- Run | Scr Mat Min Damage Taken 1302 | . 555 747 Core 263 | . 100 163 Absorbed by Shields . | . . . Redirected to Shielding 12 | . . 12 Regen/Repaired (Parts) 144 | . 144 . Core Remaining (%) 100 | 100 . . Volleys Fired 72 | . 52 20 Largest 2 | . 2 2 Hottest 85 | . 85 55 Shots Fired 138 | . 104 34 Gun 94 | . 78 16 Cannon 40 | . 26 14 Launcher 4 | . . 4 Special . | . . . Kinetic 108 | . 78 30 Thermal 26 | . 26 . Explosive 4 | . . 4 Electromagnetic . | . . . Robot Hit Streak 7 | . 7 7 Robot Miss Streak 4 | . 4 3 Penetration Max . | . . . Secondary Targets . | . . . Shots Hit Robots 82 | . 59 23 Core Hits 35 | . 23 12 Critical Kills . | . . . Critical Parts Destroyed 1 | . 1 . Critical Strikes 3 | . 3 . Burn 1 | . 1 . Destroy 1 | . 1 . Blast 1 | . 1 . Melee Attacks 8 | . . 8 Impact . | . . . Slashing 8 | . . 8 Piercing . | . . . Sneak Attacks . | . . . Combat Hostiles . | . . . Follow-up Attacks . | . . . Damage Inflicted 1332 | . 814 518 Guns 711 | . 585 126 Cannons 331 | . 228 103 Explosions 140 | . . 140 Melee 146 | . . 146 Ramming 4 | . 1 3 Kinetic 843 | . 614 229 Thermal 199 | . 199 . Explosive 140 | . . 140 Electromagnetic . | . . . Impact . | . . . Slashing 146 | . . 146 Piercing . | . . . Highest Corruption 7 | . . 7 Average Corruption 6 | . . 6 Corruption Purged . | . . . Corruption Blocked . | . . . Effects 6 | . . 6 Message Errors 2 | . . 2 Matter Fused 2 | . . 2 Energy Discharges 1 | . . 1 Data Loss (major) 1 | . . 1 Overload Shots . | . . . Overflow Damage . | . . . Projectiles . | . . . Explosions . | . . . Melee . | . . . Knockbacks 2 | . 1 1 Impact . | . . . Kinetic 2 | . 1 1 Secondary . | . . . Self-Inflicted Damage 75 | . . 75 Shots 2 | . . 2 Rammed 2 | . 1 1 Targets Rammed 2 | . 1 1 Kicked . | . . . Crushed . | . . . Highest Temperature 129 | . 129 15 Average Temperature 33 | . 35 10 Received Heat Transfer 354 | . 234 120 Siege Activations . | . . . Robots Corrupted . | . . . Combat Hostiles . | . . . Parts Fried . | . . . Impact Corruptions . | . . . Robots Melted . | . . . Combat Hostiles . | . . . Parts Melted 1 | . 1 . Heat Transferred 592 | . 592 . Parts Sabotaged . | . . . Parts Stolen . | . . . Parts Stripped . | . . . Power Chain Reactions . | . . . Missiles Intercepted . | . . . Alert | -11 -10 -10 ------- Run | Scr Mat Min Peak Influence 184 | . 184 87 Initial 27 | . . 27 Average 74 | . 79 43 Maximum Alert Level . | . . . Low Security (%) 100 | 100 100 100 Level 1 . | . . . Level 2 . | . . . Level 3 . | . . . Level 4 . | . . . Level 5 . | . . . High Security . | . . . Max Security . | . . . Squads Dispatched 3 | . 3 . Investigation 1 | . 1 . Extermination . | . . . Reinforcement 2 | . 2 . Assault . | . . . Garrison . | . . . Intercept . | . . . Searches Triggered . | . . . Construction Impeded . | . . . Haulers Reinforced . | . . . Active Scanning Responses . | . . . Cargo Convoy Interrupts . | . . . Stealth | -11 -10 -10 --------- Run | Scr Mat Min Distress Signals 1 | . 1 . Communications Jammed . | . . . Distress Signals . | . . . Times Spotted 40 | . 25 15 Peak Tracking Total 5 | . 4 5 Tactical Retreats 7 | . 1 6 Traps | -11 -10 -10 ------- Run | Scr Mat Min Traps Triggered 1 | . 1 . Indirectly . | . . . Trap Hack Attempts . | . . . Triggered . | . . . Disarmed . | . . . Reprogrammed . | . . . Reused . | . . . Traps Extracted . | . . . Installed . | . . . Triggered . | . . . Machines | -11 -10 -10 ---------- Run | Scr Mat Min Machines Disabled 2 | . 1 1 Max in Single Turn 1 | . 1 1 Machines Sabotaged . | . . . Garrisons Compromised . | . . . Overloaded Fab Kills . | . . . Hacking | -11 -10 -10 --------- Run | Scr Mat Min Machines Accessed 7 | . 7 . Terminals 4 | . 4 . Fabricators . | . . . Repair Stations 1 | . 1 . Recycling Units 2 | . 2 . Scanalyzers . | . . . Garrison Access . | . . . Total Hacks 21 | . 21 . Successful 11 | . 11 . Failed 10 | . 10 . Catastrophic 2 | . 2 . Database Lockouts . | . . . Manual 5 | . 5 . Terminals 10 | . 10 . Fabricators . | . . . Repair Stations 9 | . 9 . Recycling Units 2 | . 2 . Scanalyzers . | . . . Garrison Access . | . . . Terminal Hacks 2 | . 2 . Record 1 | . 1 . Robot Analysis 1 | . 1 . Fabricator Hacks . | . . . Repair Station Hacks 7 | . 7 . Scan Component 4 | . 4 . Repair 3 | . 3 . Recycling Unit Hacks 2 | . 2 . Report Inventory 2 | . 2 . Scanalyzer . | . . . Garrison Access Hacks . | . . . Unauthorized Hacks . | . . . Terminals . | . . . Fabricators . | . . . Repair Stations . | . . . Recycling Units . | . . . Scanalyzers . | . . . Garrison Access . | . . . Data Cores Recovered . | . . . Used . | . . . Hacking Detections 6 | . 6 . Full Trace Events 1 | . 1 . Feedback Events . | . . . Feedback Blocked . | . . . Robot Schematics Acquired . | . . . Robots Built . | . . . Authchips . | . . . Time . | . . . Total Robot Build Rating . | . . . Part Schematics Acquired . | . . . Parts Built . | . . . Authchips . | . . . Time . | . . . Total Part Build Rating . | . . . Parts Repaired 3 | . 3 . Time 88 | . 88 . Parts Recycled . | . . . Recycled Matter . | . . . Retrieved Matter . | . . . Retrieved Components . | . . . Parts Scanalyzed . | . . . Part Schematics Acquired . | . . . Parts Damaged . | . . . Bothacking | -11 -10 -10 ------------ Run | Scr Mat Min Used RIF Installer . | . . . Robots Hacked . | . . . Non-combat . | . . . Combat . | . . . Robot Hacks Applied . | . . . Relay Couplers Released . | . . . Fabnet Peak Effective % . | . . . Robots Rewired . | . . . Allies Hacked . | . . . Hacks Repelled . | . . . Allies | -11 -10 -10 -------- Run | Scr Mat Min Total Allies . | . . . Largest Group . | . . . Highest-Rated Group . | . . . Highest-Rated Ally . | . . . Total Orders . | . . . Ally Attacks . | . . . Total Damage . | . . . Kills . | . . . Allies Corrupted . | . . . Allies Melted . | . . . Intel | -11 -10 -10 ------- Run | Scr Mat Min Robot Analysis Total 1 | . 1 . Derelict Logs Recovered . | . . . Drone Launches . | . . . Drone Recoveries . | . . . Exploration | -11 -10 -10 ------------- Run | Scr Mat Min Turns Passed 1581 | 3 1385 193 Spaces Moved 767 | 3 700 64 Core 12 | . . 12 Treads 725 | . 677 48 Legs 26 | 3 23 . Wheels 4 | . . 4 Hover . | . . . Flight . | . . . Fastest Speed 100 | 120 120 100 Average Speed 158 | 120 158 163 Slowest Speed 200 | 120 160 200 Overloaded Moves . | . . . Propulsion Burnouts . | . . . Robots Hopped . | . . . Cave-ins Triggered . | . . . Exploration Rate (%) 36 | 2 95 13 Regions Visited 2 Branch Regions 1 Pre-discovered Areas . | . . . Known Exits Taken . | . . . Unknown Exits Taken 2 | 1 1 . Scrap Searched . | . . . Spaces Dug . | . . . Terrain Destroyed 24 | . . 24 Melee . | . . . Projectile . | . . . AOE 24 | . . 24 Terrain Rammed . | . . . Walls Destroyed . | . . . Machines Disabled . | . . . Actions | -11 -10 -10 --------- Run | Scr Mat Min Total 975 | 2 872 101 Wait 89 | . 89 . Move 765 | 2 699 64 Hop . | . . . Pick Up 10 | . 10 . Fast Attach 5 | . 4 1 Attach 5 | . 1 4 Detach 1 | . . 1 Swap 7 | . 5 2 Drop 11 | . 11 . Fire 72 | . 52 20 Melee 8 | . . 8 Ram . | . . . Kick . | . . . Crush 2 | . 1 1 Escape Stasis . | . . . Rewire . | . . . Trap . | . . . Miscellaneous . | . . . Route ------- -11/Scrapyard -10/Materials (discovered 4 exits: [*Mat x3] / [*Min]) -10/Mines History --------- Turn | Location | Event 1 | -11/Scrapyard | Discovered new exit (range 1) 4 | -11/Scrapyard | Entered Materials 309 | -10/Materials | Build established: Mutant 533 | -10/Materials | Repaired Broken Assault Rifle 560 | -10/Materials | Repaired Lgt. Treads 642 | -10/Materials | Discovered new exit (range 3) 733 | -10/Materials | Discovered new exit (range 5) 1004 | -10/Materials | Discovered new exit (range 3) 1321 | -10/Materials | Discovered new exit (range 7) 1382 | -10/Materials | Repaired Lgt. Treads? 1389 | -10/Materials | Entered Mines 1390 | -10/Mines | Assembled infested the area 1395 | -10/Mines | Assisted by a Guerilla fighting off Assembled 1417 | -10/Mines | Core integrity fell below 50% 1542 | -10/Mines | Core integrity fell below 20% 1582 | -10/Mines | Destroyed by as-00862 with Assembled Rifle Last Messages --------------- 01463_ Acquired 16 matter. 01473_ as-49670 destroyed. 01473_ Seismic Survey Station disabled. 01479_ System corrupted: Matter fused (-10). 01489_ as-98350 destroyed. 01490_ Lgt. Ion Engine destroyed. 01494_ Grenade Launcher destroyed. 01503_ System corrupted: Energy discharge (-19). 01510_ as-77775 destroyed. 01518_ as-60663 destroyed. 01521_ Acquired 10 matter. 01528_ System corrupted: Substantial component data lost. 01529_ The unstable cave ceiling collapses. 01537_ Lgt. Treads destroyed. 01541_ as-94339 destroyed. 01549_ Lgt. Treads destroyed. 01550_ Destroyed Asb. Rifle. 01558_ The unstable cave ceiling collapses. 01562_ >1/A62J>Q/XN ZYNT7LRUXFKQCAW 01581_ The unstable cave ceiling collapses. Map ----- +----------------------------------------------------+ | ?????????????????????????????????????????????????? | | ?????????????????????????????????????????????????? | | ?????????????????????????????????????????????????? | | ?????????????????????????????????????????????????? | | ?????????????????????????????????????????????????? | | ?????????????????????????????????????????????????? | | ?????????????????????????????????????????????????? | | ?????????????????????????????????????????????????? | | ?????????????????????????????????????????????????? | | ?????????????????????????????????????????????????? | | ?????????????????????????????????????????????????? | | ?????????????????????????????????????????????????? | | ?????????????????????????????????????????????????? | | ?????????????????????????????????????????????????? | | ????????????????# ??????????????????????????????? | | ?????????????????" ?????????????????????????????? | | ?????????????????# ???????????????????????????? | | ?????????????????# % "???????????????????????????? | | ?????????????????# %??????????????????#????????? | | ?????????????????#% !??????????????????????????? | | ???????????????###%== ?????????????#??????#?????? | | ?????????????###;;%%# =???????????#??????????????? | | ?????????????? !=!## ""###?????????????????????? | | ????????????????##%= X ###?????????????????? ? | | ????????????????# * ##?????? ?????? ????? | | ???????????# #### @ #??????????????????? | | ???????????# a #?????????????? ???? | | ?????????????##### ##????????????#?????# | | ?????????????????## ###??# #####???#??????? | | ??????????????????# #???# =##? #???#??? | | ?????????????????## a###???##### # ##?????? | | ?????????????????# ##???# % ???????? | | ?????????????????# ##??# ## ##????????? | | ?????????????????## ## ##?# % # #????????? | | ??????????????????####?## #?# # #????????? | | ????????????????????????### ###% #???#????? | | ??????????????????????????## ## "" #??????#?? | | ?????????????????????????#?# # """ #????????? | | ???????????????????????????## ##### """ #????????? | | ????????????????????????????###???# #????????? | | ??????????????????????????#??#????# #????????? | | ??????????????????????????????????# #????#???? | | ???????????????????????????????#??#######????????? | | ???????????????????????????????#?????????????????? | | ?????????????????????????????????????????????????? | | ?????????????????????????????????????????????????? | | ?????????????????????????????????????????????????? | | | | | | | +----------------------------------------------------+ Best States ------------- Heat Dissipation 25 Energy Generation 10 Energy Capacity 250 Matter Stores 300 Matter Capacity 300 Sight Range 16 Terrain Scan Range 14 Terrain Scan Density 10 Utility Shielding 33 Evasion (%) 55 Recoil Reduction 2 Item Schematics ----------------- None Robot Schematics ------------------ None Fabricated ------------ Nothing Alien Tech Used ----------------- None Achievements -------------- None Challenges ------------ None Game ------ Seed FlightVortexKinecellerator Manual? 0 Play Time 00:15:38 Cumulative 79.3 hours Start 2022.05.04 @ 22:20:33 End 2022.05.04 @ 22:35:30 Sessions 1 Manual Loads 0 Difficulty Rogue Special Mode None Game No. 87 Rogue 87 Adventurer 0 Explorer 0 Win Type - Total 0 Types 0/0/0/0/0/0/0/0/0 Lore% 24 Gallery% 33 Achievement% 27 Wizard Run 0 Options --------- ASCII 0 Keyboard 0 Movement Numpad Keybinds 0 Fullscreen 2 Font 18/Smallcaps Map View 76x50 Tactical HUD 1 Map Filters NONE Filters NONE Steam 1 RUN: a2e59fc7-554b-4053-a36f-4ca22028b0c2